[Event "*** Titled Tuesday Blitz"]
[Site "Chess.com"]
[Date "2019.05.07"]
[Round "1"]
[White "kintoho"]
[Black "MFBerna"]
[Result "1-0"]
[WhiteElo "2574"]
[BlackElo "2247"]
[TimeControl "180+2"]
[EndTime "13:06:49 PDT"]
[Termination "kintoho won on time"]

1. e4 {[%clk 0:03:00.8]} 1... c6 {[%clk 0:02:49.7]} 2. d4 {[%clk 0:03:00.7]}
2... d5 {[%clk 0:02:51.6]} 3. e5 {[%clk 0:03:02.1]} 3... c5 {[%clk 0:02:52.2]}
4. c4 {[%clk 0:03:02.4]} 4... cxd4 {[%clk 0:02:52.7]} 5. Qxd4 {[%clk 0:03:01.7]}
5... Nc6 {[%clk 0:02:48.4]} 6. Qxd5 {[%clk 0:03:02.1]} 6... Qxd5 {[%clk
0:02:48.9]} 7. cxd5 {[%clk 0:03:03.2]} 7... Nxe5 {[%clk 0:02:47.2]} 8. Bf4
{[%clk 0:03:04]} 8... Ng6 {[%clk 0:02:42]} 9. Bg3 {[%clk 0:03:04.4]} 9... Nf6
{[%clk 0:02:42.4]} 10. Nc3 {[%clk 0:03:04.4]} 10... Bd7 {[%clk 0:02:42.9]} 11.
O-O-O {[%clk 0:03:00.4]} 11... Rc8 {[%clk 0:02:41.3]} 12. Nf3 {[%clk 0:02:56.6]}
12... Ne4 {[%clk 0:02:37.3]} 13. Kc2 {[%clk 0:02:51.2]} 13... e6 {[%clk
0:02:13.1]} 14. dxe6 {[%clk 0:02:45.9]} 14... fxe6 {[%clk 0:02:04.8]} 15. Re1
{[%clk 0:02:37.6]} 15... Nxc3 {[%clk 0:01:55.6]} 16. bxc3 {[%clk 0:02:36.5]}
16... Ba3 {[%clk 0:01:12.2]} 17. Nd4 {[%clk 0:02:31.5]} 17... Kf7 {[%clk
0:01:07.7]} 18. Nb5 {[%clk 0:02:28.2]} 18... Bxb5 {[%clk 0:01:05.5]} 19. Bxb5
{[%clk 0:02:28.4]} 19... Rhd8 {[%clk 0:01:01.3]} 20. Re3 {[%clk 0:02:24.2]}
20... Bc5 {[%clk 0:00:56.1]} 21. Rf3+ {[%clk 0:02:25.1]} 21... Kg8 {[%clk
0:00:56.9]} 22. Bc4 {[%clk 0:02:24.4]} 22... Rc6 {[%clk 0:00:40.6]} 23. Re1
{[%clk 0:02:22]} 23... Nf8 {[%clk 0:00:30.2]} 24. Bb3 {[%clk 0:02:21.4]} 24...
a5 {[%clk 0:00:21.6]} 25. Re4 {[%clk 0:02:16.8]} 25... b5 {[%clk 0:00:21.3]} 26.
a4 {[%clk 0:02:15.9]} 26... b4 {[%clk 0:00:22.3]} 27. c4 {[%clk 0:02:17.3]}
27... Bb6 {[%clk 0:00:22.4]} 28. Rd3 {[%clk 0:02:16.5]} 28... Rxd3 {[%clk
0:00:21.3]} 29. Kxd3 {[%clk 0:02:17.8]} 29... Kf7 {[%clk 0:00:23.2]} 30. Re5
{[%clk 0:02:16.6]} 30... Nd7 {[%clk 0:00:23.4]} 31. Rb5 {[%clk 0:02:17.3]} 31...
Nc5+ {[%clk 0:00:24.5]} 32. Kc2 {[%clk 0:02:18]} 32... Nxb3 {[%clk 0:00:20]} 33.
Kxb3 {[%clk 0:02:19]} 33... Bd8 {[%clk 0:00:21.1]} 34. Be5 {[%clk 0:02:18.5]}
34... g6 {[%clk 0:00:19.9]} 35. Rb7+ {[%clk 0:02:18.4]} 35... Be7 {[%clk
0:00:19.4]} 36. Ra7 {[%clk 0:02:19.4]} 36... Rc5 {[%clk 0:00:17.9]} 37. Bd6
{[%clk 0:02:20.2]} 1-0

[Event "*** Titled Tuesday Blitz"]
[Site "Chess.com"]
[Date "2019.05.07"]
[Round "1"]
[White "Kangoroo3000"]
[Black "pedro_gines"]
[Result "1-0"]
[WhiteElo "2667"]
[BlackElo "2351"]
[TimeControl "180+2"]
[EndTime "13:06:51 PDT"]
[Termination "Kangoroo3000 won by resignation"]

1. d4 {[%clk 0:03:01.9]} 1... d6 {[%clk 0:03:00.4]} 2. c4 {[%clk 0:03:03.2]}
2... e5 {[%clk 0:03:00.9]} 3. d5 {[%clk 0:03:04.5]} 3... g6 {[%clk 0:03:00.9]}
4. e4 {[%clk 0:03:05]} 4... Bh6 {[%clk 0:03:01.1]} 5. Nc3 {[%clk 0:03:03.2]}
5... Bxc1 {[%clk 0:03:01.1]} 6. Rxc1 {[%clk 0:03:05.1]} 6... a5 {[%clk
0:03:01.1]} 7. Bd3 {[%clk 0:03:05.9]} 7... Na6 {[%clk 0:03:02.1]} 8. Nge2 {[%clk
0:03:06.3]} 8... Nc5 {[%clk 0:03:01.6]} 9. Bc2 {[%clk 0:03:06.7]} 9... Bd7
{[%clk 0:02:57.7]} 10. O-O {[%clk 0:03:07.5]} 10... Qe7 {[%clk 0:02:50.4]} 11.
b3 {[%clk 0:03:06.8]} 11... f5 {[%clk 0:02:49.1]} 12. exf5 {[%clk 0:03:05.7]}
12... gxf5 {[%clk 0:02:51]} 13. f3 {[%clk 0:02:43.9]} 13... Nf6 {[%clk
0:02:43.5]} 14. a3 {[%clk 0:02:44.3]} 14... O-O {[%clk 0:02:41.3]} 15. b4 {[%clk
0:02:42.7]} 15... axb4 {[%clk 0:02:43.2]} 16. axb4 {[%clk 0:02:44.6]} 16... Na6
{[%clk 0:02:44.2]} 17. Rb1 {[%clk 0:02:45.9]} 17... c6 {[%clk 0:02:40.4]} 18.
Ng3 {[%clk 0:02:44.1]} 18... f4 {[%clk 0:02:37.4]} 19. Nge4 {[%clk 0:02:44.4]}
19... Ne8 {[%clk 0:01:34.6]} 20. Qd2 {[%clk 0:02:35.5]} 20... Nac7 {[%clk
0:01:33.2]} 21. Rfd1 {[%clk 0:02:35.5]} 21... cxd5 {[%clk 0:01:28.3]} 22. Nxd5
{[%clk 0:02:04.5]} 22... Nxd5 {[%clk 0:01:28.4]} 23. Qxd5+ {[%clk 0:02:06.4]}
23... Be6 {[%clk 0:01:29.7]} 24. Qd3 {[%clk 0:02:07.8]} 24... Bf5 {[%clk
0:00:59.6]} 25. Ra1 {[%clk 0:02:08.2]} 25... Rc8 {[%clk 0:00:48]} 26. Qe2 {[%clk
0:02:02.5]} 26... Bg6 {[%clk 0:00:42.9]} 27. Ra7 {[%clk 0:01:53.5]} 27... Kh8
{[%clk 0:00:36.3]} 28. Kh1 {[%clk 0:01:53.4]} 28... Qe6 {[%clk 0:00:34.1]} 29.
Bd3 {[%clk 0:01:50.3]} 29... d5 {[%clk 0:00:21.7]} 30. Nc5 {[%clk 0:01:45.8]}
30... Qc6 {[%clk 0:00:05.1]} 31. Bxg6 {[%clk 0:01:45.4]} 31... Qxg6 {[%clk
0:00:05.9]} 32. cxd5 {[%clk 0:01:45.8]} 32... Rg8 {[%clk 0:00:06]} 33. Rxb7
{[%clk 0:01:42.7]} 33... Nd6 {[%clk 0:00:07.4]} 34. Qxe5+ {[%clk 0:01:40.2]} 1-0

[Event "*** Titled Tuesday Blitz"]
[Site "Chess.com"]
[Date "2019.05.07"]
[Round "1"]
[White "TheGandhiOfChess"]
[Black "Orange_Ghost"]
[Result "0-1"]
[WhiteElo "2317"]
[BlackElo "2666"]
[TimeControl "180+2"]
[EndTime "13:06:56 PDT"]
[Termination "Orange_Ghost won by resignation"]

1. e4 {[%clk 0:02:59.5]} 1... e6 {[%clk 0:02:59.8]} 2. d4 {[%clk 0:03:00.1]}
2... d5 {[%clk 0:03:00.9]} 3. Nc3 {[%clk 0:03:01]} 3... Bb4 {[%clk 0:03:01.5]}
4. e5 {[%clk 0:03:01.8]} 4... c5 {[%clk 0:03:02.6]} 5. a3 {[%clk 0:03:02.9]}
5... Ba5 {[%clk 0:03:03]} 6. b4 {[%clk 0:03:01.8]} 6... cxd4 {[%clk 0:03:02]} 7.
Nb5 {[%clk 0:03:02.7]} 7... Bc7 {[%clk 0:03:00.7]} 8. f4 {[%clk 0:03:01]} 8...
Bd7 {[%clk 0:03:01.6]} 9. Nf3 {[%clk 0:03:00.8]} 9... Bxb5 {[%clk 0:03:02.2]}
10. Bxb5+ {[%clk 0:03:01.8]} 10... Nc6 {[%clk 0:03:03.4]} 11. Nxd4 {[%clk
0:03:02.4]} 11... Ne7 {[%clk 0:03:03.4]} 12. c4 {[%clk 0:03:01.9]} 12... O-O
{[%clk 0:02:41.2]} 13. cxd5 {[%clk 0:03:00]} 13... Nxd4 {[%clk 0:02:30.8]} 14.
Qxd4 {[%clk 0:03:00.7]} 14... Bb6 {[%clk 0:02:30.5]} 15. Qe4 {[%clk 0:02:45.7]}
15... Nxd5 {[%clk 0:02:27.3]} 16. Bd3 {[%clk 0:02:43.7]} 16... g6 {[%clk
0:02:26.6]} 17. Bd2 {[%clk 0:02:38]} 17... Qd7 {[%clk 0:02:20.4]} 18. h4 {[%clk
0:02:35]} 18... Rfd8 {[%clk 0:02:12.9]} 19. Ke2 {[%clk 0:02:29]} 19... Ne7
{[%clk 0:02:05]} 20. g4 {[%clk 0:02:22.3]} 20... Rac8 {[%clk 0:01:41.5]} 21.
Rad1 {[%clk 0:02:11]} 21... Qa4 {[%clk 0:01:36.2]} 22. Rh3 {[%clk 0:01:58.7]}
22... Qxa3 {[%clk 0:01:26.2]} 23. h5 {[%clk 0:01:47.5]} 23... Rd4 {[%clk
0:01:19.4]} 24. Qxb7 {[%clk 0:01:43.3]} 24... Rcd8 {[%clk 0:01:11.8]} 25. Bc1
{[%clk 0:00:49.8]} 25... Qa2+ {[%clk 0:01:01]} 26. Rd2 {[%clk 0:00:48.7]} 26...
Qd5 {[%clk 0:01:01.3]} 27. Qxd5 {[%clk 0:00:42]} 27... Nxd5 {[%clk 0:01:03.2]}
28. Rd1 {[%clk 0:00:31.8]} 28... Nc3+ {[%clk 0:01:02.4]} 0-1

[Event "*** Titled Tuesday Blitz"]
[Site "Chess.com"]
[Date "2019.05.07"]
[Round "1"]
[White "Saitama_Hero"]
[Black "DoHoChess"]
[Result "0-1"]
[WhiteElo "2215"]
[BlackElo "2541"]
[TimeControl "180+2"]
[EndTime "13:06:56 PDT"]
[Termination "DoHoChess won by resignation"]

1. d4 {[%clk 0:02:52.4]} 1... Nf6 {[%clk 0:03:00.9]} 2. c4 {[%clk 0:02:52.4]}
2... e6 {[%clk 0:03:02.4]} 3. Nc3 {[%clk 0:02:53.9]} 3... Bb4 {[%clk 0:03:03]}
4. f3 {[%clk 0:02:55.4]} 4... c5 {[%clk 0:03:03.7]} 5. a3 {[%clk 0:02:56.7]}
5... Bxc3+ {[%clk 0:03:03.4]} 6. bxc3 {[%clk 0:02:58.6]} 6... d5 {[%clk
0:03:02.3]} 7. cxd5 {[%clk 0:02:58.5]} 7... exd5 {[%clk 0:03:03.2]} 8. e3 {[%clk
0:03:00]} 8... O-O {[%clk 0:03:02.8]} 9. Bd3 {[%clk 0:03:01.5]} 9... Re8 {[%clk
0:02:56.9]} 10. Ne2 {[%clk 0:03:02.9]} 10... Nc6 {[%clk 0:02:57.3]} 11. O-O
{[%clk 0:03:00.3]} 11... Bd7 {[%clk 0:02:54]} 12. Ra2 {[%clk 0:02:54.7]} 12...
Qc8 {[%clk 0:02:53.1]} 13. Nf4 {[%clk 0:02:50.2]} 13... c4 {[%clk 0:02:52.3]}
14. Bb1 {[%clk 0:02:50.2]} 14... Bf5 {[%clk 0:02:52.4]} 15. Bd2 {[%clk
0:02:47.4]} 15... b5 {[%clk 0:02:43.5]} 16. Nxd5 {[%clk 0:02:38.6]} 16... Nxd5
{[%clk 0:02:40.9]} 17. e4 {[%clk 0:02:39.1]} 17... Bg6 {[%clk 0:02:15.3]} 18.
exd5 {[%clk 0:02:39.1]} 18... Ne7 {[%clk 0:02:16.4]} 19. Bxg6 {[%clk 0:01:59.6]}
19... hxg6 {[%clk 0:02:15.3]} 20. d6 {[%clk 0:01:52.9]} 20... Nd5 {[%clk
0:02:16.6]} 21. a4 {[%clk 0:01:50.5]} 21... a6 {[%clk 0:02:06.1]} 22. Qb1 {[%clk
0:01:47.1]} 22... Qd7 {[%clk 0:02:02.8]} 23. Qa1 {[%clk 0:01:37.5]} 23... b4
{[%clk 0:01:50.6]} 24. cxb4 {[%clk 0:01:37.3]} 24... Qxd6 {[%clk 0:01:51.3]} 25.
Bc3 {[%clk 0:01:34.1]} 25... Re3 {[%clk 0:01:49.1]} 26. Bd2 {[%clk 0:01:25.4]}
26... Re2 {[%clk 0:01:40.9]} 27. Qd1 {[%clk 0:01:20]} 27... Rae8 {[%clk
0:01:39.5]} 28. Rc2 {[%clk 0:01:17]} 28... c3 {[%clk 0:01:03.5]} 29. Bc1 {[%clk
0:01:01.6]} 29... Rxc2 {[%clk 0:01:02.9]} 30. Qxc2 {[%clk 0:01:03.5]} 30... Qxb4
{[%clk 0:01:04.1]} 31. Rd1 {[%clk 0:01:00]} 31... Qc4 {[%clk 0:00:57.3]} 32. Qd3
{[%clk 0:00:41.6]} 32... Qxd3 {[%clk 0:00:57.9]} 0-1

[Event "*** Titled Tuesday Blitz"]
[Site "Chess.com"]
[Date "2019.05.07"]
[Round "1"]
[White "Vamostodorecto"]
[Black "Arystanner"]
[Result "1-0"]
[WhiteElo "2418"]
[BlackElo "2746"]
[TimeControl "180+2"]
[EndTime "13:07:05 PDT"]
[Termination "Vamostodorecto won by resignation"]

1. d4 {[%clk 0:03:01.9]} 1... Nf6 {[%clk 0:03:00.9]} 2. c4 {[%clk 0:03:01.5]}
2... e6 {[%clk 0:03:02.1]} 3. Nc3 {[%clk 0:02:56.7]} 3... Bb4 {[%clk 0:03:02.4]}
4. a3 {[%clk 0:02:55.8]} 4... Bxc3+ {[%clk 0:03:03.1]} 5. bxc3 {[%clk
0:02:57.7]} 5... d5 {[%clk 0:03:03.1]} 6. cxd5 {[%clk 0:02:56.6]} 6... exd5
{[%clk 0:03:01.3]} 7. f3 {[%clk 0:02:57.6]} 7... O-O {[%clk 0:03:01.2]} 8. e3
{[%clk 0:02:58.5]} 8... b6 {[%clk 0:03:01.5]} 9. Bd3 {[%clk 0:02:59.4]} 9... Ba6
{[%clk 0:03:02.6]} 10. Ne2 {[%clk 0:03:00.9]} 10... c5 {[%clk 0:03:02.7]} 11.
O-O {[%clk 0:03:01.1]} 11... Bxd3 {[%clk 0:03:03.8]} 12. Qxd3 {[%clk 0:03:02.9]}
12... Nc6 {[%clk 0:03:05.5]} 13. Ng3 {[%clk 0:03:03.5]} 13... Re8 {[%clk
0:03:05.2]} 14. Ra2 {[%clk 0:03:03.6]} 14... Rc8 {[%clk 0:03:05.5]} 15. Re2
{[%clk 0:03:04.5]} 15... g6 {[%clk 0:03:00.7]} 16. Bb2 {[%clk 0:03:04.2]} 16...
h5 {[%clk 0:02:51.8]} 17. Nh1 {[%clk 0:02:59.1]} 17... Rc7 {[%clk 0:02:44.6]}
18. Nf2 {[%clk 0:02:59.7]} 18... Rce7 {[%clk 0:02:40]} 19. Rfe1 {[%clk
0:02:56.2]} 19... Na5 {[%clk 0:02:21.9]} 20. e4 {[%clk 0:02:54.2]} 20... Nc4
{[%clk 0:02:21.5]} 21. Bc1 {[%clk 0:02:53.8]} 21... cxd4 {[%clk 0:02:15.2]} 22.
cxd4 {[%clk 0:02:53.2]} 22... Nh7 {[%clk 0:02:09.3]} 23. e5 {[%clk 0:02:50.4]}
23... Qd7 {[%clk 0:01:54]} 24. f4 {[%clk 0:02:48]} 24... Nf8 {[%clk 0:01:54.5]}
25. Qf3 {[%clk 0:02:27.8]} 25... Ne6 {[%clk 0:01:52.9]} 26. Rd1 {[%clk
0:02:24.1]} 26... Ng7 {[%clk 0:01:53.3]} 27. g4 {[%clk 0:02:20.6]} 27... hxg4
{[%clk 0:01:54]} 28. Nxg4 {[%clk 0:02:22.5]} 28... Nh5 {[%clk 0:01:49.5]} 29.
Rg2 {[%clk 0:02:16.1]} 29... Kh7 {[%clk 0:01:29.9]} 30. Qh3 {[%clk 0:02:06.6]}
30... Qf5 {[%clk 0:01:26.1]} 31. Nf6+ {[%clk 0:02:01.5]} 31... Kh6 {[%clk
0:01:11.5]} 32. Qxf5 {[%clk 0:01:59.6]} 32... gxf5 {[%clk 0:01:12]} 33. Nxe8
{[%clk 0:01:51.2]} 33... Rxe8 {[%clk 0:01:11.7]} 34. Rg5 {[%clk 0:01:50.1]}
34... Ng7 {[%clk 0:01:09.4]} 35. Kf2 {[%clk 0:01:45.7]} 35... Ne6 {[%clk
0:00:46.1]} 36. Rg2 {[%clk 0:01:28.9]} 36... Rc8 {[%clk 0:00:28.1]} 37. Rd3
{[%clk 0:01:28.4]} 1-0

[Event "*** Titled Tuesday Blitz"]
[Site "Chess.com"]
[Date "2019.05.07"]
[Round "1"]
[White "jacky72"]
[Black "monalize"]
[Result "1/2-1/2"]
[WhiteElo "2646"]
[BlackElo "2342"]
[TimeControl "180+2"]
[EndTime "13:07:15 PDT"]
[Termination "Game drawn - insufficient material"]

1. d4 {[%clk 0:03:01.2]} 1... Nf6 {[%clk 0:02:59.3]} 2. c4 {[%clk 0:02:56.5]}
2... d6 {[%clk 0:03:00.3]} 3. Nc3 {[%clk 0:02:56.2]} 3... e5 {[%clk 0:03:01.1]}
4. g3 {[%clk 0:02:54]} 4... Nbd7 {[%clk 0:03:00.8]} 5. Bg2 {[%clk 0:02:54.5]}
5... g6 {[%clk 0:03:01.3]} 6. Nf3 {[%clk 0:02:55.5]} 6... Bg7 {[%clk 0:03:01.2]}
7. O-O {[%clk 0:02:55.9]} 7... O-O {[%clk 0:03:01.9]} 8. b3 {[%clk 0:02:57.4]}
8... exd4 {[%clk 0:03:01.8]} 9. Nxd4 {[%clk 0:02:58.2]} 9... Re8 {[%clk
0:03:02.8]} 10. Bb2 {[%clk 0:02:59.2]} 10... Nc5 {[%clk 0:03:03]} 11. Re1 {[%clk
0:02:58]} 11... a5 {[%clk 0:03:02.9]} 12. e4 {[%clk 0:02:57.7]} 12... c6 {[%clk
0:03:03.4]} 13. Qc2 {[%clk 0:02:56.5]} 13... Qc7 {[%clk 0:03:00.2]} 14. Rad1
{[%clk 0:02:57.6]} 14... Ng4 {[%clk 0:02:59.2]} 15. h3 {[%clk 0:02:57.4]} 15...
Ne5 {[%clk 0:02:59.5]} 16. f4 {[%clk 0:02:58.7]} 16... Ned7 {[%clk 0:02:59.8]}
17. Qd2 {[%clk 0:02:54.2]} 17... Qb6 {[%clk 0:02:59.8]} 18. Kh2 {[%clk
0:02:53.7]} 18... a4 {[%clk 0:02:59.4]} 19. Qc2 {[%clk 0:02:48.6]} 19... axb3
{[%clk 0:02:57]} 20. axb3 {[%clk 0:02:50.5]} 20... Na6 {[%clk 0:02:37.2]} 21.
Na4 {[%clk 0:02:49.6]} 21... Qc7 {[%clk 0:02:37.4]} 22. Qd2 {[%clk 0:02:47.6]}
22... Ndc5 {[%clk 0:02:36.9]} 23. Nxc5 {[%clk 0:02:42.4]} 23... Nxc5 {[%clk
0:02:36.9]} 24. b4 {[%clk 0:02:43.3]} 24... Na4 {[%clk 0:02:36.7]} 25. Ba1
{[%clk 0:02:44.5]} 25... Nb6 {[%clk 0:02:36.5]} 26. c5 {[%clk 0:02:42.8]} 26...
dxc5 {[%clk 0:02:35.9]} 27. bxc5 {[%clk 0:02:44.7]} 27... Nd7 {[%clk 0:02:36.4]}
28. Nb3 {[%clk 0:02:42.3]} 28... Bxa1 {[%clk 0:02:34.3]} 29. Rxa1 {[%clk
0:02:44.2]} 29... Rxa1 {[%clk 0:02:34.4]} 30. Rxa1 {[%clk 0:02:46.1]} 30... Nf8
{[%clk 0:02:34]} 31. Qd6 {[%clk 0:02:41.5]} 31... Qd7 {[%clk 0:02:33]} 32. Nd4
{[%clk 0:02:36.4]} 32... Rd8 {[%clk 0:02:29.9]} 33. Qxd7 {[%clk 0:02:24.3]}
33... Nxd7 {[%clk 0:02:26.4]} 34. Nb3 {[%clk 0:02:23.6]} 34... Kf8 {[%clk
0:02:17.9]} 35. e5 {[%clk 0:02:23.9]} 35... Ke7 {[%clk 0:02:17.8]} 36. Kg1
{[%clk 0:02:18.3]} 36... f6 {[%clk 0:02:18.1]} 37. exf6+ {[%clk 0:02:17.2]}
37... Nxf6 {[%clk 0:02:18.3]} 38. Ra8 {[%clk 0:02:17.1]} 38... Be6 {[%clk
0:02:17.2]} 39. Rxd8 {[%clk 0:02:16.6]} 39... Kxd8 {[%clk 0:02:17.8]} 40. Nd4
{[%clk 0:02:16.4]} 40... Bd5 {[%clk 0:02:16]} 41. g4 {[%clk 0:02:15.1]} 41...
Bxg2 {[%clk 0:02:15.4]} 42. Kxg2 {[%clk 0:02:17]} 42... Nd7 {[%clk 0:02:16]} 43.
Nb3 {[%clk 0:02:13.9]} 43... Ke7 {[%clk 0:02:16]} 44. Kf3 {[%clk 0:02:15.3]}
44... Ke6 {[%clk 0:02:16.8]} 45. Ke4 {[%clk 0:02:16.4]} 45... Nf6+ {[%clk
0:02:17.4]} 46. Kd4 {[%clk 0:02:15.3]} 46... h5 {[%clk 0:02:16.1]} 47. Na5
{[%clk 0:02:06.2]} 47... hxg4 {[%clk 0:02:15.8]} 48. hxg4 {[%clk 0:02:08.1]}
48... Nxg4 {[%clk 0:02:16.5]} 49. Nxb7 {[%clk 0:02:09.4]} 49... Nf6 {[%clk
0:02:15.1]} 50. Nd8+ {[%clk 0:02:06.2]} 50... Kd7 {[%clk 0:02:14.8]} 51. Nf7
{[%clk 0:02:07.6]} 51... Ke6 {[%clk 0:02:10.4]} 52. Ne5 {[%clk 0:02:07.4]} 52...
Nh5 {[%clk 0:02:09.2]} 53. Ke4 {[%clk 0:01:50.6]} 53... Ng3+ {[%clk 0:02:07]}
54. Kd4 {[%clk 0:01:51.2]} 54... Nf5+ {[%clk 0:02:07.2]} 55. Ke4 {[%clk
0:01:52.2]} 55... Ne7 {[%clk 0:02:07.9]} 56. Nf3 {[%clk 0:01:47.5]} 56... Kf6
{[%clk 0:02:05]} 57. Nd4 {[%clk 0:01:47.8]} 57... g5 {[%clk 0:02:05]} 58. f5
{[%clk 0:01:49.1]} 58... g4 {[%clk 0:02:05.5]} 59. Kf4 {[%clk 0:01:43.2]} 59...
g3 {[%clk 0:02:06]} 60. Kf3 {[%clk 0:01:44.5]} 60... Nxf5 {[%clk 0:02:04.9]} 61.
Nxc6 {[%clk 0:01:45.3]} 61... Ke6 {[%clk 0:02:05.7]} 62. Nb4 {[%clk 0:01:43.1]}
62... Kd7 {[%clk 0:02:04.2]} 63. Kg2 {[%clk 0:01:40.2]} 63... Kc7 {[%clk
0:02:04.6]} 64. Kf3 {[%clk 0:01:41.5]} 64... Nd4+ {[%clk 0:02:04.8]} 65. Kxg3
{[%clk 0:01:42.2]} 65... Ne6 {[%clk 0:02:05.4]} 66. c6 {[%clk 0:01:43.2]} 66...
Nd4 {[%clk 0:02:05.2]} 67. Kf4 {[%clk 0:01:43.5]} 67... Nxc6 {[%clk 0:02:05.8]}
68. Nxc6 {[%clk 0:01:44.9]} 1/2-1/2

[Event "*** Titled Tuesday Blitz"]
[Site "Chess.com"]
[Date "2019.05.07"]
[Round "1"]
[White "FancyPlaySyndrome"]
[Black "Perecke"]
[Result "1-0"]
[WhiteElo "2519"]
[BlackElo "2097"]
[TimeControl "180+2"]
[EndTime "13:07:15 PDT"]
[Termination "FancyPlaySyndrome won by resignation"]

1. e4 {[%clk 0:03:01.9]} 1... e5 {[%clk 0:03:00.7]} 2. Nf3 {[%clk 0:03:03.3]}
2... Nc6 {[%clk 0:03:01.3]} 3. Bb5 {[%clk 0:03:04.9]} 3... a6 {[%clk 0:03:02.4]}
4. Bxc6 {[%clk 0:03:06.4]} 4... dxc6 {[%clk 0:03:04.3]} 5. O-O {[%clk
0:03:07.2]} 5... Bg4 {[%clk 0:03:05.3]} 6. c3 {[%clk 0:03:08.7]} 6... h5 {[%clk
0:02:58.1]} 7. d4 {[%clk 0:02:43.4]} 7... exd4 {[%clk 0:02:51.6]} 8. cxd4 {[%clk
0:02:45.3]} 8... Bxf3 {[%clk 0:02:51.5]} 9. Qxf3 {[%clk 0:02:41.5]} 9... Qxd4
{[%clk 0:02:50.9]} 10. Rd1 {[%clk 0:02:42.8]} 10... Qf6 {[%clk 0:02:51.3]} 11.
Bf4 {[%clk 0:02:41.6]} 11... Bd6 {[%clk 0:02:48.2]} 12. e5 {[%clk 0:02:42.9]}
12... Bxe5 {[%clk 0:02:40.3]} 13. Re1 {[%clk 0:02:44.2]} 13... Ne7 {[%clk
0:02:39.2]} 14. Rxe5 {[%clk 0:02:40.1]} 14... O-O-O {[%clk 0:02:33.4]} 15. Nc3
{[%clk 0:02:38]} 15... Ng6 {[%clk 0:02:31.7]} 16. Re4 {[%clk 0:02:39.6]} 16...
Rhe8 {[%clk 0:02:19.2]} 17. Be3 {[%clk 0:02:32.5]} 17... Qxf3 {[%clk 0:02:15.5]}
18. gxf3 {[%clk 0:02:34.4]} 18... Ne5 {[%clk 0:02:11.8]} 19. f4 {[%clk
0:02:35.9]} 19... Nf3+ {[%clk 0:01:59.9]} 20. Kg2 {[%clk 0:02:37.4]} 20... Nh4+
{[%clk 0:02:00.9]} 21. Kh3 {[%clk 0:02:38.5]} 21... Nf5 {[%clk 0:01:58.7]} 22.
Rxe8 {[%clk 0:02:40.1]} 22... Rxe8 {[%clk 0:01:59.8]} 23. Rd1 {[%clk 0:02:38]}
23... Nxe3 {[%clk 0:01:59.2]} 24. fxe3 {[%clk 0:02:38.6]} 24... Rxe3+ {[%clk
0:01:59.9]} 25. Kh4 {[%clk 0:02:38.7]} 25... g6 {[%clk 0:01:58.7]} 26. Kg5
{[%clk 0:02:31.9]} 26... Rf3 {[%clk 0:01:58.4]} 27. Rd2 {[%clk 0:02:27.9]} 27...
Rf1 {[%clk 0:01:52.2]} 28. Ne4 {[%clk 0:02:27.2]} 28... b6 {[%clk 0:01:35.8]}
29. Nf2 {[%clk 0:02:21.1]} 29... Rg1+ {[%clk 0:00:53.6]} 30. Kf6 {[%clk
0:02:22.4]} 30... Rg2 {[%clk 0:00:54.9]} 31. h3 {[%clk 0:02:24]} 31... h4 {[%clk
0:00:44.1]} 32. Kxf7 {[%clk 0:02:25]} 32... g5 {[%clk 0:00:45.5]} 33. f5 {[%clk
0:02:25.6]} 33... g4 {[%clk 0:00:44.4]} 34. Ke7 {[%clk 0:02:21.6]} 34... g3
{[%clk 0:00:42.4]} 35. Rd8+ {[%clk 0:02:23.1]} 35... Kb7 {[%clk 0:00:43.5]} 36.
Ng4 {[%clk 0:02:20.5]} 36... Re2+ {[%clk 0:00:44]} 37. Kf8 {[%clk 0:02:19.1]}
37... g2 {[%clk 0:00:21.5]} 38. Rd1 {[%clk 0:02:20.3]} 38... Re4 {[%clk
0:00:22.9]} 39. Nh6 {[%clk 0:02:04.4]} 39... Rf4 {[%clk 0:00:21.4]} 40. Rg1
{[%clk 0:02:05.4]} 40... Rf2 {[%clk 0:00:22.5]} 41. Kg7 {[%clk 0:02:06]} 41...
Rf3 {[%clk 0:00:16.9]} 42. f6 {[%clk 0:02:01]} 42... Rg3+ {[%clk 0:00:17.6]} 43.
Kh7 {[%clk 0:02:00.1]} 43... Rxh3 {[%clk 0:00:18.8]} 44. Rxg2 {[%clk 0:01:59.7]}
44... Rf3 {[%clk 0:00:19.7]} 45. f7 {[%clk 0:02:00.8]} 45... h3 {[%clk
0:00:18.9]} 46. Rh2 {[%clk 0:02:02.3]} 46... c5 {[%clk 0:00:19.3]} 47. Kg6
{[%clk 0:02:03.8]} 47... Rg3+ {[%clk 0:00:20.3]} 48. Kf6 {[%clk 0:02:04.7]}
48... Rf3+ {[%clk 0:00:21.7]} 49. Nf5 {[%clk 0:02:06.3]} 1-0

[Event "*** Titled Tuesday Blitz"]
[Site "Chess.com"]
[Date "2019.05.07"]
[Round "1"]
[White "Msb2"]
[Black "pedromartinez91"]
[Result "1-0"]
[WhiteElo "2966"]
[BlackElo "2498"]
[TimeControl "180+2"]
[EndTime "13:07:18 PDT"]
[Termination "Msb2 won by resignation"]

1. d4 {[%clk 0:03:01.9]} 1... Nf6 {[%clk 0:03:00.2]} 2. c4 {[%clk 0:03:02]} 2...
c5 {[%clk 0:03:00.9]} 3. d5 {[%clk 0:03:03]} 3... e6 {[%clk 0:03:01.9]} 4. Nc3
{[%clk 0:03:04.4]} 4... exd5 {[%clk 0:03:02.5]} 5. cxd5 {[%clk 0:03:06.3]} 5...
Bd6 {[%clk 0:03:03.6]} 6. e4 {[%clk 0:03:05.6]} 6... O-O {[%clk 0:03:03.6]} 7.
Nf3 {[%clk 0:03:07.2]} 7... Re8 {[%clk 0:03:04.7]} 8. Bd3 {[%clk 0:03:08.5]}
8... Bc7 {[%clk 0:03:00.6]} 9. O-O {[%clk 0:03:09.5]} 9... d6 {[%clk 0:03:01.7]}
10. h3 {[%clk 0:03:10.3]} 10... a6 {[%clk 0:03:00.9]} 11. a4 {[%clk 0:03:11.5]}
11... Ba5 {[%clk 0:02:59.4]} 12. Bf4 {[%clk 0:02:56.3]} 12... Qc7 {[%clk
0:02:39.5]} 13. Nd2 {[%clk 0:02:55.2]} 13... Nbd7 {[%clk 0:02:24.3]} 14. Nc4
{[%clk 0:02:54.6]} 14... Ne5 {[%clk 0:02:19.5]} 15. Nxa5 {[%clk 0:02:30.4]}
15... Qxa5 {[%clk 0:02:16.8]} 16. Be2 {[%clk 0:02:28.7]} 16... Qb4 {[%clk
0:02:07.6]} 17. Qc2 {[%clk 0:02:25.9]} 17... Bd7 {[%clk 0:02:03.3]} 18. Bg5
{[%clk 0:01:57]} 18... Ng6 {[%clk 0:01:25.4]} 19. Bxf6 {[%clk 0:01:56.7]} 19...
gxf6 {[%clk 0:01:27.3]} 20. Qd2 {[%clk 0:01:50.8]} 20... Kg7 {[%clk 0:01:22.7]}
21. h4 {[%clk 0:01:45.6]} 21... Nxh4 {[%clk 0:01:17.9]} 22. Qf4 {[%clk
0:01:45.5]} 22... Ng6 {[%clk 0:01:14.5]} 23. Qxd6 {[%clk 0:01:45.8]} 23... Rad8
{[%clk 0:01:11.7]} 24. Qg3 {[%clk 0:01:46]} 24... Qd4 {[%clk 0:00:59.1]} 25.
Rad1 {[%clk 0:01:45.7]} 25... Qb4 {[%clk 0:00:56.9]} 26. Qe3 {[%clk 0:01:09.7]}
26... f5 {[%clk 0:00:51.6]} 27. f4 {[%clk 0:00:51.1]} 27... Bxa4 {[%clk
0:00:40.8]} 28. Nxa4 {[%clk 0:00:44.9]} 28... Rxe4 {[%clk 0:00:41]} 29. Qc3+
{[%clk 0:00:46]} 29... f6 {[%clk 0:00:31.7]} 30. Qxb4 {[%clk 0:00:45.9]} 30...
Rxb4 {[%clk 0:00:32.7]} 31. Nxc5 {[%clk 0:00:47.2]} 31... Rxb2 {[%clk
0:00:32.3]} 32. Ne6+ {[%clk 0:00:48]} 32... Kh6 {[%clk 0:00:33.5]} 33. Nxd8
{[%clk 0:00:49]} 33... Rxe2 {[%clk 0:00:35]} 34. d6 {[%clk 0:00:50.3]} 34... Nh4
{[%clk 0:00:35.6]} 35. Rf2 {[%clk 0:00:51.2]} 35... Re3 {[%clk 0:00:34.9]} 36.
d7 {[%clk 0:00:51.8]} 36... Rg3 {[%clk 0:00:36.8]} 37. Nf7+ {[%clk 0:00:52.4]}
1-0